bitfinex-derivatives/quotes_ETHF0:USTF0_20250520
["timestamp","ask_amount","ask_price","bid_price","bid_amount"]
[1747700929451,2.26769572,2538.3,2538.1,0.78771]
[1747700929651,1.48003572,2538.3,2538.1,0.78771]
[1747700930052,1.48003572,2538.3,2537.6,16.78649]
[1747700930252,1.48003572,2538.3,2538.2,0.78769]
[1747700930554,1.48003572,2538.3,2537.7,1.4352]
[1747700930758,3.2078,2537.9,2537.3,3.2078]
[1747700930958,1.4574,2537.8,2537.4,0.78793]
[1747700931156,0.78786,2537.7,2537.1,14.6027]
[1747700931363,1.4574,2537.6,2537.4,0.78791]
[1747700931557,1.4574,2537.6,2537.5,0.78791]
[1747700932760,1.4574,2537.6,2537.1,2.9937]
[1747700932958,4.6652,2537.6,2537.0,3.2078]
[1747700933160,0.78792,2537.5,2537.2,0.78798]
[1747700933353,1.5222,2537.4,2537.2,0.78798]
[1747700934053,1.5222,2537.4,2537.1,0.78801]
[1747700934359,1.5222,2537.4,2536.7,16.78619]
[1747700934662,1.5222,2537.4,2537.2,0.78798]
[1747700934856,0.78797,2537.3,2537.0,0.78806]
[1747700935062,2.31021,2537.2,2537.0,0.78806]
[1747700935357,0.78804,2537.1,2536.7,3.2078]
[1747700935560,4.73,2537.0,2536.5,1.432]
[1747700935753,4.73,2537.0,2536.4,4.6079]
[1747700935754,0.78809,2536.9,2536.4,0.78823]
[1747700935955,3.79919,2536.9,2536.3,0.78827]
[1747700936153,3.79919,2536.9,2536.0,6.79850874]
[1747700936154,21.83089,2536.9,2536.2,0.78829]
[1747700936349,21.83089,2536.9,2536.3,0.78826]
[1747700936558,23.01305,2536.9,2536.0,1.46086874]
[1747700936766,0.78834,2536.1,2536.0,0.67250874]
[1747700937460,5.78834,2536.1,2536.0,0.67250874]
[1747700937853,0.78837,2536.0,2535.9,0.99411994]
[1747700938061,0.7884,2535.9,2535.8,0.00591366]
[1747700938266,3.2078,2536.0,2535.8,0.00591366]
[1747700938457,0.7884,2535.9,2535.8,0.00591366]
[1747700939260,3.2078,2536.0,2535.9,0.7884]
[1747700940059,8.2078,2536.0,2535.8,0.00591366]
[1747700940261,1.97103,2535.9,2534.9,2.253]
[1747700940464,3.2078,2535.3,2534.9,1.4643]
[1747700940663,3.2078,2535.3,2535.2,0.78862]
[1747700940965,1.478,2535.2,2535.1,0.78863]
[1747700941864,1.478,2535.2,2535.0,0.78867]
[1747700942061,1.478,2535.2,2535.1,0.78865]
[1747700943373,3.2078,2535.3,2535.2,0.78862]
[1747700944271,3.9964,2535.3,2535.1,0.78864]
[1747700944581,1.4242,2535.2,2535.1,0.78865]
[1747700945062,1.4242,2535.2,2535.1,0.87351477]
[1747700945262,0.78893,2534.2,2534.1,3.2078]
[1747700945563,0.78896,2534.1,2534.0,0.14571994]
[1747700945769,0.78906,2533.8,2533.7,1.3339513]
[1747700945967,0.78915,2533.5,2533.4,1.96529677]
[1747700946271,1.43541366,2533.7,2533.4,1.66770708]
[1747700946466,1.43541366,2533.7,2533.6,0.78912]
[1747700946670,2.22451366,2533.7,2533.4,2.45686708]
[1747700947168,2.22451366,2533.7,2533.6,0.78912]
[1747700947169,1.43541366,2533.7,2533.6,0.78912]
[1747700948264,0.00591366,2533.7,2533.6,0.78912]
[1747700949964,3.66e-06,2533.7,2533.6,0.78912]
[1747700951673,1.53970366,2533.7,2533.6,0.78912]
[1747700952268,11.53970366,2533.7,2533.6,0.78912]
[1747700952471,3.2078,2534.2,2534.1,0.78896]
[1747700952667,1.5397,2534.6,2534.5,0.78884]
[1747700952864,4.6435,2535.5,2534.8,1.97183]
[1747700953075,3.2078,2535.5,2535.4,0.78856]
[1747700954172,3.2078,2535.5,2535.3,0.78858]
[1747700954368,3.2078,2535.5,2535.2,0.00591366]
[1747700954569,3.99634,2535.5,2535.2,0.00591366]
[1747700954771,3.2078,2535.5,2535.4,0.78856]
[1747700954971,3.99635,2535.5,2535.2,1.48131366]
[1747700955167,19.8288,2535.5,2535.1,0.08486477]
[1747700955371,19.8288,2535.5,2534.8,1.5214]
[1747700955372,3.2078,2535.2,2533.6,0.50155767]
[1747700955671,3.2078,2533.9,2533.6,0.50155767]
[1747700955872,3.2078,2533.9,2533.7,1.248381]
[1747700956072,1.4275,2533.8,2533.7,1.248401]
[1747700956267,1.4275,2533.8,2533.7,0.78909]
[1747700956966,0.00591366,2534.0,2533.9,0.78903]
[1747700957278,0.00591366,2534.0,2533.6,0.50155767]
[1747700957478,0.00591366,2534.0,2533.9,0.78903]
[1747700957677,0.00591366,2534.0,2533.6,1.97595767]
[1747700957868,0.00591366,2534.0,2533.7,2.26347]
[1747700957869,0.78904,2533.9,2533.7,2.26347]
[1747700958071,1.4658,2533.9,2533.7,1.4744]
[1747700958275,1.4658,2533.9,2533.8,1.4744]
[1747700958469,2.25483,2533.9,2533.8,1.4744]
[1747700958675,0.78912,2533.6,2533.5,0.00591366]
[1747700958972,3.99692,2533.6,2533.5,0.00591366]
[1747700961374,1.97308,2533.3,2532.2,3.70935767]
[1747700961581,3.2078,2532.5,2532.4,0.78947]
[1747700962174,3.2078,2532.5,2532.4,0.78949]
[1747700965181,0.00591366,2532.7,2532.6,0.78943]
[1747700965380,3.2078,2533.2,2533.1,0.78928]
[1747700966280,1.4533,2533.7,2533.1,3.99708]
[1747700966471,1.45921366,2533.7,2533.6,0.78912]
[1747700966886,0.00591366,2533.7,2533.6,0.78912]
[1747700967878,4.00282366,2533.7,2533.5,0.78914]
[1747700968080,1.4602,2533.6,2533.5,0.78914]
[1747700968387,0.00591366,2533.7,2533.6,2.33692]
[1747700968872,3.66e-06,2533.7,2533.6,10.54472]
[1747700969680,0.78909366,2533.7,2533.6,0.46142212]
[1747700969875,3.66e-06,2533.7,2533.6,0.46142212]
[1747700970076,3.66e-06,2533.7,2533.6,1.25054212]
[1747700970886,3.66e-06,2533.7,2533.6,0.78912]
[1747700971580,3.66e-06,2533.7,2533.4,1.4965]
[1747700971781,3.66e-06,2533.7,2533.6,0.78912]
[1747700972076,3.66e-06,2533.7,2533.4,1.4965]
[1747700972886,3.66e-06,2533.7,2533.5,0.78913]
[1747700973090,3.66e-06,2533.7,2533.6,0.78912]
[1747700973285,1.51980366,2533.7,2533.6,0.78912]
[1747700974086,3.66e-06,2533.7,2533.6,3.99692]
[1747700974286,3.66e-06,2533.7,2533.6,10.40192]
[1747700974485,3.66e-06,2533.7,2533.6,10.48678477]
[1747700974689,3.66e-06,2533.7,2533.6,11.95878477]
[1747700974893,3.66e-06,2533.7,2533.6,13.36378477]
[1747700975386,3.66e-06,2533.7,2533.6,13.82708043]
[1747700975688,2.33002585,2534.8,2534.7,0.78878]
[1747700976083,1.43288585,2534.8,2534.7,5.78878]
[1747700976279,3.12169309,2535.1,2535.0,0.78868]
[1747700977585,1.43721366,2535.3,2535.2,0.78862]
[1747700981989,0.7887,2535.0,2534.8,4.00244366]
[1747700982192,3.99651,2534.9,2534.8,0.00591366]
[1747700982593,8.99651,2534.9,2534.8,0.00591366]
[1747700982794,10.55371,2534.9,2534.8,0.00591366]
[1747700982989,0.78885,2534.5,2534.3,0.50155767]
[1747700983296,1.5572,2534.4,2534.3,1.29045767]
[1747700983696,3.2078,2534.9,2534.3,3.70935767]
[1747700983993,0.78875,2534.8,2534.6,0.78879]
[1747700984196,2.34598,2534.7,2534.6,0.78879]
[1747700984393,1.5572,2534.7,2534.5,0.78884]
[1747700984593,2.34599,2534.7,2534.6,0.78881]
[1747700984793,0.78881,2534.6,2534.5,0.78883]
[1747700985102,2.26041,2534.6,2534.5,0.78883]
[1747700985601,1.4716,2534.6,2534.3,1.29636133]
[1747700985898,0.78884,2534.5,2534.3,1.29636133]
[1747700986102,45.97963,2534.9,2534.3,0.79480366]
[1747700986103,2.26047,2534.4,2534.3,0.79480366]
[1747700986398,2.26047,2534.4,2534.3,0.00591366]
[1747700986896,0.78902,2534.0,2533.8,0.46743265]
[1747700987095,1.4716,2533.9,2533.8,1.25647265]
[1747700987493,3.2078,2534.2,2534.1,0.78896]
[1747700988391,0.78899,2534.0,2533.9,0.00591366]
[1747700989598,5.78899,2534.0,2533.9,0.00591366]
[1747700990403,5.0,2534.0,2532.9,4.7892]
[1747700990698,0.78931,2533.0,2532.9,3.2078]
[1747700990893,3.2078,2533.4,2532.8,3.70935767]
[1747700991095,1.547,2533.3,2532.8,4.49870767]
[1747700991300,1.547,2533.3,2532.8,1.29090767]
[1747700991301,3.1163,2533.3,2532.8,1.29090767]
[1747700991506,0.78934,2532.9,2532.8,0.50747133]
[1747700991805,3.2078,2533.1,2532.8,0.50747133]
[1747700992009,2.33632,2533.0,2532.8,0.79526366]
[1747700992306,3.2078,2533.1,2533.0,0.78931]
[1747700993302,3.99708,2533.1,2532.9,0.78932]
[1747700993497,1.547,2533.0,2532.9,0.78932]
[1747700993698,0.78934,2532.9,2532.8,0.00591366]
[1747700994111,0.78946,2532.5,2532.4,0.46892553]
[1747700994808,2.36166,2532.5,2532.4,0.46892553]
[1747700994999,1.5722,2532.5,2532.4,0.46892553]
[1747700995199,2.36166,2532.5,2532.4,0.46892553]
[1747700996301,7.36166,2532.5,2531.9,0.50155767]
[1747700996503,3.2078,2532.1,2531.3,0.50155767]
[1747700996807,3.99752,2531.7,2531.5,0.78975]
[1747700997005,1.5053,2531.6,2531.5,0.78975]
[1747700999109,1.5053,2531.6,2531.5,0.78977]
[1747700999411,3.21371366,2532.0,2531.9,0.78965]
[1747701000008,0.78935,2532.9,2532.1,1.97392]
[1747701000209,3.2078,2532.5,2531.8,3.2078]
[1747701000513,0.78953,2532.3,2532.1,0.78957]
[1747701000712,1.5607,2532.2,2532.1,0.78957]
[1747701000913,1.5607,2532.5,2532.4,0.78949]
[1747701001099,0.00591366,2532.7,2532.6,0.78943]
[1747701001305,3.66e-06,2532.7,2532.6,0.78943]
[1747701001600,3.66e-06,2532.7,2532.6,16.95943]
[1747701002229,3.66e-06,2532.7,2532.6,0.78943]
[1747701002431,3.66e-06,2532.7,2532.3,1.5507]
[1747701002629,3.66e-06,2532.7,2532.2,0.00591366]
[1747701002932,3.66e-06,2532.7,2532.6,0.78943]
[1747701003232,1.51987426,2533.2,2533.1,0.78927]
[1747701003435,4.6905,2533.7,2533.1,3.2078]
[1747701003623,3.2078,2533.4,2532.6,3.2078]
[1747701003830,0.78931,2533.0,2532.7,0.78937]
[1747701004032,3.2078,2533.4,2532.3,3.2078]
[1747701004329,1.4827,2533.2,2533.1,0.78927]
[1747701004833,0.00591366,2533.4,2532.9,3.2078]
[1747701005037,0.00591366,2533.4,2533.3,0.78921]
[1747701005625,0.00591366,2533.4,2532.9,3.2078]
[1747701005837,0.00591366,2533.4,2533.2,0.78923]
[1747701006030,1.58071366,2533.4,2533.3,0.78921]
[1747701006225,3.2078,2534.0,2533.3,3.2078]
[1747701006630,3.2078,2533.8,2532.9,3.2078]
[1747701006827,3.2078,2533.1,2532.6,4.08207477]
[1747701007029,0.78932,2533.0,2532.8,0.78936]
[1747701007326,0.78932,2533.0,2532.7,0.78938]
[1747701007535,3.2078,2533.1,2532.6,3.29266477]
[1747701007732,0.00591366,2533.2,2532.6,14.46166477]
[1747701008029,0.00591366,2533.2,2533.0,0.78928]
[1747701008236,3.2078,2533.1,2532.6,0.08486477]
[1747701008736,0.00591366,2533.2,2532.6,0.08486477]
[1747701008928,3.2078,2533.1,2532.7,0.78939]
[1747701009123,0.78931,2533.0,2532.6,0.08486477]
[1747701009325,0.00591366,2533.2,2532.6,0.08486477]
[1747701009631,1.5237,2533.0,2532.6,0.08486477]
[1747701009840,0.00591366,2533.2,2533.1,0.78927]
[1747701010930,0.00591366,2533.2,2532.8,3.2078]
[1747701011136,0.00591366,2533.2,2533.1,0.78927]
[1747701011533,0.79517366,2533.2,2532.8,3.2078]
[1747701011734,0.78933,2533.0,2532.8,3.99717]
[1747701011934,3.2078,2533.1,2533.0,0.78931]
[1747701012137,4.8084,2533.1,2533.0,0.78931]
[1747701012433,0.00591366,2533.2,2533.1,0.78927]
[1747701013033,1.60651366,2533.2,2533.1,0.78927]
[1747701013233,1.60651366,2533.2,2533.0,0.78928]
[1747701013536,0.00591366,2533.2,2533.1,0.78927]
[1747701013730,3.66e-06,2533.2,2533.1,3.99707]
[1747701013934,3.66e-06,2533.2,2533.1,8.99707]
[1747701014839,3.12169309,2534.6,2534.5,0.78884]
[1747701015041,3.12169309,2534.6,2533.6,3.2078]
[1747701015341,3.2078,2533.8,2533.2,3.2078]
[1747701015543,0.78923,2533.3,2533.0,0.78929]
[1747701015744,1.5483,2533.2,2532.9,0.00591366]
[1747701016036,1.5483,2533.2,2533.0,2.12582548]
[1747701016436,3.21371366,2533.4,2533.0,1.33653548]
[1747701016834,1.5483,2533.3,2533.2,0.78924]
[1747701017334,0.00591366,2533.4,2533.3,0.78921]
[1747701018137,4.7921,2534.5,2533.3,19.2638]
[1747701018334,0.78912,2533.6,2533.3,3.2078]
[1747701018532,1.5659,2533.5,2533.4,0.78918]
[1747701018738,0.789,2534.0,2533.7,0.78906]
[1747701018937,3.99689,2533.8,2533.5,0.78913]
[1747701019137,1.5659,2533.7,2533.5,0.78913]
[1747701019330,1.5659,2533.7,2533.6,0.78912]
[1747701019841,0.00591366,2533.9,2533.7,0.78909]
[1747701020036,0.00591366,2533.9,2533.8,0.78906]
[1747701020541,1.57181366,2533.9,2533.8,0.78906]
[1747701020749,0.00591366,2533.9,2533.8,0.78906]
[1747701021247,1.54391366,2533.9,2533.4,1.5686]
[1747701021651,1.54391366,2533.9,2533.8,0.78906]
[1747701022147,1.54391366,2533.9,2533.8,5.78906]
[1747701022148,0.00591366,2533.9,2533.8,5.78906]
[1747701022336,4.7793,2534.8,2534.0,1.97246]
[1747701022536,1.538,2534.7,2534.6,0.78879]
[1747701023041,2.32678,2534.7,2534.3,1.5371]
[1747701023242,1.538,2534.7,2534.0,3.2078]
[1747701023447,3.99672,2534.3,2534.2,0.00591366]
[1747701024043,3.2078,2534.3,2534.2,0.00591366]
[1747701024251,8.9967,2534.3,2534.2,0.00591366]
[1747701024745,8.9967,2534.3,2533.8,0.78906]
[1747701024746,0.78902,2534.0,2533.8,0.78906]
[1747701024951,0.78912,2533.7,2533.5,3.2078]
[1747701025145,0.78912,2533.7,2533.6,0.78912]
[1747701025443,3.2078,2534.0,2533.5,3.2078]
[1747701025744,3.2078,2534.1,2533.6,1.5011]
[1747701025947,3.2078,2534.1,2533.7,0.78908]
[1747701026251,3.2078,2534.1,2534.0,0.78899]
[1747701026543,4.8051,2534.4,2533.8,3.2078]
[1747701026745,1.97226,2534.3,2533.7,2.29017]
[1747701026951,0.78904,2533.9,2533.7,0.78907]
[1747701027253,3.2078,2534.0,2533.5,3.99694]
[1747701027557,3.2078,2534.0,2533.6,0.78912]
[1747701027755,0.78911,2533.7,2533.5,5.53063]
[1747701027944,3.2078,2534.0,2533.5,4.7415]
[1747701028143,3.99682,2534.0,2533.9,0.78903]
[1747701028344,3.2078,2534.0,2533.7,0.78907]
[1747701028539,3.2078,2534.0,2533.5,4.7415]
[1747701028750,0.78903,2533.9,2533.7,0.78908]
[1747701029152,0.78906,2533.8,2533.7,0.78908]
[1747701029549,3.2078,2534.0,2533.8,0.78904]
[1747701029852,1.5973,2534.4,2533.8,3.2078]
[1747701030045,0.78891,2534.3,2534.2,0.78893]
[1747701030246,0.78893,2534.2,2534.1,0.78893]
[1747701030443,0.7891,2533.7,2533.6,0.78912]
[1747701030749,1.97241,2534.1,2533.6,0.78912]
[1747701031250,0.78907,2533.8,2533.6,0.78912]
[1747701031453,0.78907,2533.8,2533.7,0.78909]
[1747701031658,3.2078,2534.2,2533.7,0.78909]
[1747701031849,0.78905,2533.9,2533.7,0.78909]
[1747701032043,3.2078,2534.2,2533.5,4.7412]
[1747701032245,0.78898,2534.1,2533.5,4.7412]
[1747701032454,3.2078,2534.2,2533.8,0.78904]
[1747701032647,0.78905,2533.9,2533.7,0.78907]
[1747701032855,1.97241,2534.1,2533.6,0.78912]
[1747701033447,0.78909,2533.7,2533.6,0.78912]
[1747701034055,0.78907,2533.8,2533.7,0.78907]
[1747701034457,0.78909,2533.7,2533.6,0.7891]
[1747701034753,5.18017,2534.2,2533.5,4.7412]
[1747701034754,3.2078,2534.2,2533.5,4.7412]
[1747701034954,3.2078,2534.2,2533.7,0.78906]
[1747701035148,0.78904,2533.9,2533.8,0.78904]
[1747701035347,0.78906,2533.8,2533.7,0.87392477]
[1747701035955,3.2078,2534.2,2533.7,0.08486477]
[1747701036154,3.2078,2534.2,2533.9,0.789]
[1747701036358,5.55354119,2534.3,2533.8,1.5357]
[1747701036955,0.78903,2533.9,2533.8,2.32474]
[1747701037249,0.78906,2533.8,2533.7,0.08486477]
[1747701037645,0.78903,2533.9,2533.8,0.78903]
[1747701037845,3.2078,2534.0,2533.9,0.78903]
[1747701038052,2.34574119,2534.3,2534.2,0.78893]
[1747701038845,0.78881,2534.6,2534.5,0.78882]
[1747701039042,2.34574119,2534.7,2534.6,0.78881]
[1747701039255,2.34574119,2534.7,2534.6,2.37511]
[1747701039457,2.34574119,2534.7,2534.6,7.37511]
[1747701039757,2.34574119,2534.7,2534.6,9.00891]
[1747701041759,1.16667119,2534.7,2534.6,9.00891]
[1747701041956,3.12169309,2535.0,2534.6,10.19208]
[1747701042156,3.12169309,2535.0,2534.9,3.99651]
[1747701042461,3.12169309,2535.0,2534.7,1.5292]
[1747701042752,3.12169309,2535.0,2534.6,0.47031295]
[1747701042753,4.8489,2534.9,2534.6,0.47031295]
[1747701042965,0.78881,2534.6,2534.5,0.68225538]
[1747701043161,1.97214,2534.5,2533.5,4.886]
[1747701043349,3.99686,2533.8,2533.4,1.665]
[1747701043548,3.2078,2534.2,2533.4,1.665]
[1747701043753,1.6411,2534.1,2533.8,0.78903]
[1747701043957,1.6411,2534.1,2534.0,0.78899]
[1747701044655,1.6411,2534.1,2533.9,0.78901]
[1747701045065,1.6411,2534.1,2533.8,1.67091366]
[1747701045257,1.6411,2534.1,2534.0,0.78899]
[1747701045757,11.65479,2534.7,2534.4,0.78886]
[1747701046059,2.45182,2534.6,2533.9,1.97257]
[1747701046263,1.663,2534.6,2534.0,1.5607]
[1747701046459,3.2078,2534.4,2533.8,3.21371366]
[1747701046667,1.663,2534.3,2533.8,3.21371366]
[1747701046859,1.663,2534.3,2534.2,0.78893]
[1747701047566,6.663,2534.3,2533.8,0.00591366]
[1747701047770,0.78903,2533.9,2533.8,0.00591366]
[1747701048159,5.78903,2533.9,2533.8,0.00591366]
[1747701048870,5.78903,2533.9,2533.7,0.08486477]
[1747701048871,0.78906,2533.8,2533.7,0.08486477]
[1747701049164,1.97281,2533.6,2532.6,3.2078]
[1747701049356,0.78932,2533.0,2532.9,0.78934]
[1747701049556,0.78931,2533.0,2532.9,0.78934]
[1747701049764,0.78935,2532.9,2532.7,0.78937]
[1747701049965,1.6515,2532.8,2532.7,0.78937]
[1747701050361,0.78943,2532.6,2532.5,0.00591366]
[1747701050556,0.78968,2531.8,2531.6,1.66770708]
[1747701051056,0.78971,2531.7,2531.6,1.66770708]
[1747701051262,0.78971,2531.7,2531.1,3.23729219]
[1747701051263,4.8593,2531.7,2531.1,3.23729219]
[1747701051570,3.9976,2531.4,2531.2,0.00591366]
[1747701052368,0.79012,2530.4,2529.5,13.87785276]
[1747701052567,0.79037,2529.6,2529.5,11.32339709]
[1747701052759,0.79046,2529.3,2529.1,6.52331939]
[1747701053067,0.79046,2529.3,2528.5,1.82135031]
[1747701053068,0.79068,2528.6,2528.5,1.82135031]
[1747701053266,11.66066,2528.7,2528.5,1.82135031]
[1747701053571,3.21372569,2528.8,2528.3,12.12364218]
[1747701054070,0.00592569,2528.8,2528.6,5.65713572]
[1747701054263,3.2078,2528.7,2528.4,1.5826]
[1747701054568,3.2078,2528.7,2528.3,12.12364218]
[1747701054766,3.99854,2528.4,2528.3,10.44584218]
[1747701055073,14.87554,2528.4,2528.3,10.44584218]
[1747701055263,19.87554,2528.4,2528.3,10.44584218]
[1747701055762,19.87554,2528.4,2528.3,16.1029779]
[1747701055763,3.2078,2528.4,2528.3,16.1029779]
[1747701055962,3.21372569,2528.8,2528.3,15.20642112]
[1747701056162,3.21372569,2528.8,2528.6,0.01310086]
[1747701056663,3.21372569,2528.8,2528.7,5.65713572]
[1747701056865,3.21372569,2528.8,2528.7,6.44778572]
[1747701057059,0.00592569,2528.8,2528.7,17.54554543]
[1747701057370,3.2078,2529.8,2529.3,0.79045]
[1747701057568,44.0078,2529.8,2529.4,5.65713572]
[1747701057764,3.2078,2529.8,2529.7,5.65713572]
[1747701057988,1.15245991,2530.2,2530.1,0.79021]
[1747701058171,1.15245991,2530.2,2530.1,6.44734572]
[1747701058468,1.15245991,2530.2,2530.1,15.99070543]
[1747701059367,1.15245991,2530.2,2529.9,0.00592569]
[1747701059874,1.15245991,2530.2,2529.9,5.66306141]
[1747701060169,1.15245991,2530.2,2530.1,5.65713572]
[1747701060362,1.15245991,2530.2,2529.9,1.67232569]
[1747701060564,1.15245991,2530.2,2530.1,6.44734572]
[1747701060766,0.79024,2530.1,2529.9,0.00592569]
[1747701060971,3.2078,2530.0,2529.9,0.00592569]
[1747701061168,14.09672569,2530.4,2530.2,5.65713572]
[1747701061468,3.2078,2530.3,2529.9,0.00592569]
[1747701061670,14.09672569,2530.4,2529.9,9.5492854]
[1747701061873,0.00592569,2530.4,2530.3,9.65508572]
[1747701062060,3.2078,2531.2,2530.8,0.78998]
[1747701062264,3.2078,2531.2,2530.3,8.86493572]
[1747701062265,3.2078,2531.2,2531.0,5.65713572]
[1747701062576,0.78997,2530.9,2530.7,5.65713572]
[1747701062775,0.78997,2530.9,2530.6,3.2078]
[1747701062776,3.2078,2531.2,2530.9,5.65713572]
[1747701063076,0.00592569,2531.3,2531.2,0.78987]
[1747701063271,0.00592569,2531.3,2531.0,3.2078]
[1747701063573,0.00592569,2531.3,2531.2,8.01210572]
[1747701064068,0.00592569,2531.3,2530.5,3.2078]
[1747701064274,3.2078,2531.1,2530.6,5.65713572]
[1747701064471,3.2078,2531.1,2530.6,7.24153572]
[1747701064770,3.2078,2531.1,2530.9,5.65713572]
[1747701064971,11.36092569,2531.3,2531.1,0.78988]
[1747701065275,11.36092569,2531.3,2531.0,0.78991]
[1747701065482,11.36092569,2531.3,2531.2,5.65713572]
[1747701065668,0.00592569,2531.3,2531.2,6.44700572]
[1747701065869,0.00592569,2531.3,2531.2,8.03140572]
[1747701066068,0.00592569,2531.3,2531.2,17.57476543]
[1747701066374,0.78987,2531.2,2530.8,0.78996]
[1747701066576,3.21372569,2531.3,2530.6,4.7922]
[1747701066779,0.00592569,2531.3,2531.2,6.44700572]
[1747701067076,0.64545096,2532.1,2531.2,8.86493572]
[1747701067271,0.64545096,2532.1,2531.5,5.65713572]
[1747701067272,3.2078,2531.9,2531.5,5.65713572]
[1747701067472,14.5618,2531.9,2531.4,5.65713572]
[1747701067679,0.78976,2531.6,2531.5,5.65713572]
[1747701067879,0.7898,2531.4,2531.3,1.66182569]
[1747701068075,3.2078,2531.6,2531.4,5.65713572]
[1747701068268,0.00592569,2531.8,2531.7,5.65713572]
[1747701068269,3.21372569,2531.8,2531.7,5.65713572]
[1747701068578,0.7901,2530.5,2530.3,3.29266477]
[1747701068771,11.354,2530.9,2530.3,12.83601879]
[1747701069078,3.2078,2531.3,2531.0,4.32549572]
[1747701069267,3.2078,2531.3,2530.7,3.2078]
[1747701069268,0.78988,2531.2,2531.1,4.32549572]
[1747701069770,3.2078,2531.3,2530.9,0.00592569]
[1747701069971,0.78993,2531.0,2530.9,0.00592569]
[1747701070172,0.78988,2531.2,2531.0,4.32549572]
[1747701070367,3.2078,2531.7,2531.3,4.32549572]
[1747701070575,3.2078,2531.7,2531.4,1.6338]
[1747701070877,3.2078,2531.7,2531.6,4.32549572]
[1747701071075,3.2078,2531.7,2531.4,1.6338]
[1747701071377,0.78993,2531.0,2530.9,0.00592569]
[1747701071578,0.78993,2531.0,2530.9,11.18307971]
[1747701071878,14.5618,2531.4,2530.9,1.63972569]
[1747701072077,0.7899,2531.1,2531.0,4.32549572]
[1747701072477,0.78993,2531.0,2530.9,1.63972569]
[1747701072673,14.5618,2531.4,2530.9,1.63972569]
[1747701072879,0.78993,2531.0,2530.9,5.96522141]
[1747701073078,0.78993,2531.0,2530.9,1.63972569]
[1747701073380,0.79012,2530.4,2530.3,0.08486477]
[1747701073579,1.97566,2530.0,2529.2,3.2078]
[1747701073772,3.99804,2530.0,2529.9,4.32549572]
[1747701074182,3.2078,2530.0,2529.2,3.2078]
[1747701074387,3.2078,2530.0,2529.8,4.32549572]
[1747701074573,3.2078,2530.0,2529.9,4.32549572]
[1747701074782,0.79612569,2530.2,2529.9,4.32549572]
[1747701074980,0.79612569,2530.2,2530.1,4.32549572]
[1747701075184,0.79039,2529.6,2529.3,0.00592569]
[1747701075488,0.79041,2529.5,2529.3,12.75707971]
[1747701075680,0.79041,2529.5,2528.9,3.2078]
[1747701075681,5.18387,2529.5,2528.9,3.2078]
[1747701075882,5.18387,2529.5,2527.6,1.97742]
[1747701075883,3.2078,2529.2,2527.9,1.6487]
[1747701076183,0.79099,2527.6,2527.5,4.8236]
[1747701076394,0.79099,2527.6,2527.5,13.35336971]
[1747701076574,0.79099,2527.6,2527.5,14.89577629]
[1747701076770,0.79086,2528.1,2527.5,10.61462]
[1747701076971,1.97678,2528.5,2527.9,4.75020658]
[1747701077184,12.177,2528.7,2528.4,1.54240658]
[1747701077392,0.79063,2528.8,2528.6,4.75020658]
[1747701077573,0.79062,2528.8,2528.7,4.75020658]
[1747701078183,0.79062,2528.8,2528.7,6.0675906]
[1747701078579,0.79062,2528.8,2528.7,4.75020658]
[1747701078980,0.79062,2528.8,2528.7,3.2078]
[1747701079179,0.79062,2528.8,2528.7,6.0675906]
[1747701079486,0.79062,2528.8,2528.7,4.75020658]
[1747701079682,0.79068,2528.6,2528.5,1.6878]
[1747701079887,0.79058,2528.9,2528.8,1.54240658]
[1747701080178,11.36392569,2529.0,2528.5,3.23020658]
[1747701080179,0.79065,2528.7,2528.5,3.23020658]
[1747701080378,0.7908,2528.2,2528.1,3.2078]
[1747701080575,0.7908,2528.2,2528.1,4.52518402]
[1747701080781,0.7908,2528.2,2528.1,6.0675906]
[1747701081484,0.7908,2528.2,2528.1,2.38054]
[1747701081684,0.79087,2528.0,2527.9,0.00592569]
[1747701081886,0.79087,2528.0,2527.9,1.54833227]
[1747701082278,0.79087,2528.0,2527.9,5.69e-06]
[1747701082477,56.221,2528.0,2526.3,3.2078]
[1747701082782,56.221,2528.0,2525.5,0.79163]
[1747701082783,0.79149,2526.0,2524.8,1.66085756]
[1747701082984,3.2078,2526.2,2525.9,1.97538562]
[1747701083177,0.79149,2526.0,2525.9,1.97538562]
[1747701083484,3.99929,2526.0,2525.9,1.31739562]
[1747701083792,0.00593836,2526.2,2525.9,6.31739562]
[1747701084286,0.00593836,2526.2,2525.9,1.31739562]
[1747701084487,0.00593836,2526.2,2526.0,1.6581]
[1747701084677,1.89041029,2527.0,2526.1,3.2078]
[1747701084881,0.79126,2526.8,2526.5,3.2078]
[1747701085184,3.2078,2527.4,2526.6,1.6581]
[1747701085584,3.12908991,2528.7,2527.3,3.2078]
[1747701085884,3.12908991,2528.7,2526.4,1.97835]
[1747701085885,0.79095,2527.8,2527.7,0.00593836]
[1747701086388,3.12169309,2527.9,2527.7,3.21373836]
[1747701086784,0.00593836,2528.3,2527.8,1.6672]
[1747701086982,0.00593836,2528.3,2528.2,3.2078]
[1747701088190,0.79670836,2528.3,2528.2,3.2078]
[1747701088578,0.00593836,2528.3,2528.2,3.2078]
[1747701088779,0.00593836,2528.3,2528.2,8.9986]
[1747701088993,0.79670836,2528.3,2528.2,3.2078]
[1747701089992,0.00593836,2528.3,2528.2,8.2078]
[1747701090201,0.00593836,2528.3,2528.2,8.9986]
[1747701091089,0.79670836,2528.3,2528.2,3.2078]
[1747701091883,0.00593836,2528.3,2528.2,3.2078]
[1747701092085,0.79670836,2528.3,2528.2,3.2078]
[1747701092492,0.00593836,2528.3,2528.2,3.2078]
[1747701092788,0.79670836,2528.3,2528.2,3.2078]
[1747701093489,0.00593836,2528.3,2528.2,3.2078]
[1747701094089,0.00593836,2528.3,2528.2,3.9986]
[1747701094884,0.79670836,2528.3,2528.2,3.2078]
[1747701095079,0.79670836,2528.3,2528.2,0.08486477]
[1747701096293,0.79670836,2528.3,2528.2,4.77e-06]
[1747701096497,5.79670836,2528.3,2528.2,4.77e-06]
[1747701097387,0.79670836,2528.3,2528.2,4.77e-06]